Workbook

Sheet Sheet1
A2: 附件3:
A3: 商品住房一房一价明细表
A5: 申报日期：2025年 04月 13日 | D5: 14日
A7: 开发企业：沅江市永固房地产开发有限公司
A9: 楼盘名称：金域新时代二期
A11: 地址：沅江市鑫海路交新中路东侧
A13: 房号 | B13: 栋号 | C13: 单元房号 | D13: 房产性质 | E13: 建筑 面积 ㎡ | F13: 套内建筑面积 ㎡ | G13: 公摊 面积 ㎡ | H13: 销售 单价（元/㎡) | I13: 房屋 总价 （元）
A14: 1 | B14: 21 | C14: 301 | D14: 住宅 | E14: 141.71 | F14: 108.84 | G14: 32.87 | H14: 6000 | I14: =E14*H14 -> 850260
A15: 2 | B15: 21 | C15: 302 | D15: 住宅 | E15: 126.54 | F15: 97.19 | G15: 29.35 | H15: 6000 | I15: =E15*H15 -> 759240
A16: 3 | B16: 21 | C16: 401 | D16: 住宅 | E16: 126 | F16: 96.77 | G16: 29.23 | H16: 6000 | I16: =E16*H16 -> 756000
A17: 4 | B17: 21 | C17: 402 | D17: 住宅 | E17: 114.82 | F17: 88.19 | G17: 26.63 | H17: 6000 | I17: =E17*H17 -> 688920
A18: 5 | B18: 24 | C18: 101 | D18: 住宅 | E18: 124.13 | F18: 94.49 | G18: 29.64 | H18: 6000 | I18: =E18*H18 -> 744780
A19: 6 | B19: 24 | C19: 201 | D19: 住宅 | E19: 123.88 | F19: 94.3 | G19: 29.58 | H19: 4120 | I19: 510386
A20: 7 | B20: 24 | C20: 202 | D20: 住宅 | E20: 109.82 | F20: 83.6 | G20: 26.22 | H20: 4058 | I20: 445650
A21: 8 | B21: 24 | C21: 203 | D21: 住宅 | E21: 109.82 | F21: 83.6 | G21: 26.22 | H21: 4058 | I21: 445650
A22: 9 | B22: 24 | C22: 204 | D22: 住宅 | E22: 123.88 | F22: 94.3 | G22: 29.58 | H22: 4120 | I22: 510386
A23: 10 | B23: 24 | C23: 301 | D23: 住宅 | E23: 123.88 | F23: 94.3 | G23: 29.58 | H23: 4130 | I23: 511624
A24: 11 | B24: 24 | C24: 302 | D24: 住宅 | E24: 109.82 | F24: 83.6 | G24: 26.22 | H24: 4068 | I24: 446748
A25: 12 | B25: 24 | C25: 303 | D25: 住宅 | E25: 109.82 | F25: 83.6 | G25: 26.22 | H25: 4068 | I25: 446748
A26: 13 | B26: 24 | C26: 304 | D26: 住宅 | E26: 123.88 | F26: 94.3 | G26: 29.58 | H26: 4130 | I26: 511624
A27: 14 | B27: 24 | C27: 401 | D27: 住宅 | E27: 123.88 | F27: 94.3 | G27: 29.58 | H27: 4140 | I27: 512863
A28: 15 | B28: 24 | C28: 402 | D28: 住宅 | E28: 109.82 | F28: 83.6 | G28: 26.22 | H28: 4078 | I28: 447846
A29: 16 | B29: 24 | C29: 403 | D29: 住宅 | E29: 109.82 | F29: 83.6 | G29: 26.22 | H29: 4078 | I29: 447846
A30: 17 | B30: 24 | C30: 404 | D30: 住宅 | E30: 123.88 | F30: 94.3 | G30: 29.58 | H30: 4140 | I30: 512863
A31: 18 | B31: 24 | C31: 501 | D31: 住宅 | E31: 123.88 | F31: 94.3 | G31: 29.58 | H31: 4150 | I31: =E31*H31 -> 514102
A32: 19 | B32: 24 | C32: 502 | D32: 住宅 | E32: 109.82 | F32: 83.6 | G32: 26.22 | H32: 4088 | I32: 448944
A33: 20 | B33: 24 | C33: 503 | D33: 住宅 | E33: 109.82 | F33: 83.6 | G33: 26.22 | H33: 4088 | I33: 448944
A34: 21 | B34: 24 | C34: 504 | D34: 住宅 | E34: 123.88 | F34: 94.3 | G34: 29.58 | H34: 4150 | I34: 514102
A35: 22 | B35: 24 | C35: 601 | D35: 住宅 | E35: 123.88 | F35: 94.3 | G35: 29.58 | H35: 4160 | I35: 515341
A36: 23 | B36: 24 | C36: 602 | D36: 住宅 | E36: 109.82 | F36: 83.6 | G36: 26.22 | H36: 4098 | I36: 450042
A37: 24 | B37: 24 | C37: 603 | D37: 住宅 | E37: 109.82 | F37: 83.6 | G37: 26.22 | H37: 4098 | I37: 450042
A38: 25 | B38: 24 | C38: 604 | D38: 住宅 | E38: 123.88 | F38: 94.3 | G38: 29.58 | H38: 4160 | I38: 515341
A39: 26 | B39: 24 | C39: 701 | D39: 住宅 | E39: 123.88 | F39: 94.3 | G39: 29.58 | H39: 4170 | I39: 516580
A40: 27 | B40: 24 | C40: 702 | D40: 住宅 | E40: 109.82 | F40: 83.6 | G40: 26.22 | H40: 4108 | I40: 451141
A41: 28 | B41: 24 | C41: 703 | D41: 住宅 | E41: 109.82 | F41: 83.6 | G41: 26.22 | H41: 4108 | I41: 451141
A42: 29 | B42: 24 | C42: 704 | D42: 住宅 | E42: 123.88 | F42: 94.3 | G42: 29.58 | H42: 4170 | I42: 516580
A43: 30 | B43: 24 | C43: 801 | D43: 住宅 | E43: 123.88 | F43: 94.3 | G43: 29.58 | H43: 4180 | I43: 517818
A44: 31 | B44: 24 | C44: 802 | D44: 住宅 | E44: 109.82 | F44: 83.6 | G44: 26.22 | H44: 4118 | I44: 452239
A45: 32 | B45: 24 | C45: 803 | D45: 住宅 | E45: 109.82 | F45: 83.6 | G45: 26.22 | H45: 4118 | I45: 452239
A46: 33 | B46: 24 | C46: 804 | D46: 住宅 | E46: 123.88 | F46: 94.3 | G46: 29.58 | H46: 4180 | I46: 517818
A47: 34 | B47: 24 | C47: 901 | D47: 住宅 | E47: 123.88 | F47: 94.3 | G47: 29.58 | H47: 4190 | I47: 519057
A48: 35 | B48: 24 | C48: 902 | D48: 住宅 | E48: 109.82 | F48: 83.6 | G48: 26.22 | H48: 4128 | I48: 453337
A49: 36 | B49: 24 | C49: 903 | D49: 住宅 | E49: 109.82 | F49: 83.6 | G49: 26.22 | H49: 4128 | I49: 453337
A50: 37 | B50: 24 | C50: 904 | D50: 住宅 | E50: 123.88 | F50: 94.3 | G50: 29.58 | H50: 4190 | I50: 519057
A51: 38 | B51: 24 | C51: 1001 | D51: 住宅 | E51: 123.88 | F51: 94.3 | G51: 29.58 | H51: 4200 | I51: 520296
A52: 39 | B52: 24 | C52: 1002 | D52: 住宅 | E52: 109.82 | F52: 83.6 | G52: 26.22 | H52: 4138 | I52: 454435
A53: 40 | B53: 24 | C53: 1003 | D53: 住宅 | E53: 109.82 | F53: 83.6 | G53: 26.22 | H53: 4138 | I53: 454435
A54: 41 | B54: 24 | C54: 1004 | D54: 住宅 | E54: 123.88 | F54: 94.3 | G54: 29.58 | H54: 4200 | I54: 520296
A55: 42 | B55: 24 | C55: 1101 | D55: 住宅 | E55: 123.88 | F55: 94.3 | G55: 29.58 | H55: 4210 | I55: 521535
A56: 43 | B56: 24 | C56: 1102 | D56: 住宅 | E56: 109.82 | F56: 83.6 | G56: 26.22 | H56: 4148 | I56: 455533
A57: 44 | B57: 24 | C57: 1103 | D57: 住宅 | E57: 109.82 | F57: 83.6 | G57: 26.22 | H57: 4148 | I57: 455533
A58: 45 | B58: 24 | C58: 1104 | D58: 住宅 | E58: 123.88 | F58: 94.3 | G58: 29.58 | H58: 4210 | I58: 521535
A59: 46 | B59: 24 | C59: 1201 | D59: 住宅 | E59: 123.88 | F59: 94.3 | G59: 29.58 | H59: 4220 | I59: 522774
A60: 47 | B60: 24 | C60: 1202 | D60: 住宅 | E60: 109.82 | F60: 83.6 | G60: 26.22 | H60: 4158 | I60: 456632
A61: 48 | B61: 24 | C61: 1203 | D61: 住宅 | E61: 109.82 | F61: 83.6 | G61: 26.22 | H61: 4158 | I61: 456632
A62: 49 | B62: 24 | C62: 1204 | D62: 住宅 | E62: 123.88 | F62: 94.3 | G62: 29.58 | H62: 4220 | I62: 522774
A63: 50 | B63: 24 | C63: 1301 | D63: 住宅 | E63: 123.88 | F63: 94.3 | G63: 29.58 | H63: 4230 | I63: 524012
A64: 51 | B64: 24 | C64: 1302 | D64: 住宅 | E64: 109.82 | F64: 83.6 | G64: 26.22 | H64: 4168 | I64: 457730
A65: 52 | B65: 24 | C65: 1303 | D65: 住宅 | E65: 109.82 | F65: 83.6 | G65: 26.22 | H65: 4168 | I65: 457730
A66: 53 | B66: 24 | C66: 1304 | D66: 住宅 | E66: 123.88 | F66: 94.3 | G66: 29.58 | H66: 4230 | I66: 524012
A67: 54 | B67: 24 | C67: 1401 | D67: 住宅 | E67: 123.88 | F67: 94.3 | G67: 29.58 | H67: 4240 | I67: 525251
A68: 55 | B68: 24 | C68: 1402 | D68: 住宅 | E68: 109.82 | F68: 83.6 | G68: 26.22 | H68: 4178 | I68: 458828
A69: 56 | B69: 24 | C69: 1403 | D69: 住宅 | E69: 109.82 | F69: 83.6 | G69: 26.22 | H69: 4178 | I69: 458828
A70: 57 | B70: 24 | C70: 1404 | D70: 住宅 | E70: 123.88 | F70: 94.3 | G70: 29.58 | H70: 4240 | I70: 525251
A71: 58 | B71: 24 | C71: 1501 | D71: 住宅 | E71: 123.88 | F71: 94.3 | G71: 29.58 | H71: 4250 | I71: 526490
A72: 59 | B72: 24 | C72: 1502 | D72: 住宅 | E72: 109.82 | F72: 83.6 | G72: 26.22 | H72: 4188 | I72: 459926
A73: 60 | B73: 24 | C73: 1503 | D73: 住宅 | E73: 109.82 | F73: 83.6 | G73: 26.22 | H73: 4188 | I73: 459926
A74: 61 | B74: 24 | C74: 1504 | D74: 住宅 | E74: 123.88 | F74: 94.3 | G74: 29.58 | H74: 4250 | I74: 526490
A75: 62 | B75: 24 | C75: 1601 | D75: 住宅 | E75: 123.88 | F75: 94.3 | G75: 29.58 | H75: 4260 | I75: 527729
A76: 63 | B76: 24 | C76: 1602 | D76: 住宅 | E76: 109.82 | F76: 83.6 | G76: 26.22 | H76: 4198 | I76: 461024
A77: 64 | B77: 24 | C77: 1603 | D77: 住宅 | E77: 109.82 | F77: 83.6 | G77: 26.22 | H77: 4198 | I77: 461024
A78: 65 | B78: 24 | C78: 1604 | D78: 住宅 | E78: 123.88 | F78: 94.3 | G78: 29.58 | H78: 4260 | I78: 527729
A79: 66 | B79: 24 | C79: 1701 | D79: 住宅 | E79: 123.88 | F79: 94.3 | G79: 29.58 | H79: 4270 | I79: 528968
A80: 67 | B80: 24 | C80: 1702 | D80: 住宅 | E80: 109.82 | F80: 83.6 | G80: 26.22 | H80: 4208 | I80: 462123
A81: 68 | B81: 24 | C81: 1703 | D81: 住宅 | E81: 109.82 | F81: 83.6 | G81: 26.22 | H81: 4208 | I81: 462123
A82: 69 | B82: 24 | C82: 1704 | D82: 住宅 | E82: 123.88 | F82: 94.3 | G82: 29.58 | H82: 4270 | I82: 528968
A83: 70 | B83: 24 | C83: 1801 | D83: 住宅 | E83: 123.88 | F83: 94.3 | G83: 29.58 | H83: 4280 | I83: 530206
A84: 71 | B84: 24 | C84: 1802 | D84: 住宅 | E84: 109.82 | F84: 83.6 | G84: 26.22 | H84: 4218 | I84: 463221
A85: 72 | B85: 24 | C85: 1803 | D85: 住宅 | E85: 109.82 | F85: 83.6 | G85: 26.22 | H85: 4218 | I85: 463221
A86: 73 | B86: 24 | C86: 1804 | D86: 住宅 | E86: 123.88 | F86: 94.3 | G86: 29.58 | H86: 4280 | I86: 530206
A87: 74 | B87: 24 | C87: 1901 | D87: 住宅 | E87: 123.88 | F87: 94.3 | G87: 29.58 | H87: 4290 | I87: 531445
A88: 75 | B88: 24 | C88: 1902 | D88: 住宅 | E88: 109.82 | F88: 83.6 | G88: 26.22 | H88: 4228 | I88: 464319
A89: 76 | B89: 24 | C89: 1903 | D89: 住宅 | E89: 109.82 | F89: 83.6 | G89: 26.22 | H89: 4228 | I89: 464319
A90: 77 | B90: 24 | C90: 1904 | D90: 住宅 | E90: 123.88 | F90: 94.3 | G90: 29.58 | H90: 4290 | I90: 531445
A91: 78 | B91: 24 | C91: 2001 | D91: 住宅 | E91: 123.88 | F91: 94.3 | G91: 29.58 | H91: 4300 | I91: 532684
A92: 79 | B92: 24 | C92: 2002 | D92: 住宅 | E92: 109.82 | F92: 83.6 | G92: 26.22 | H92: 4238 | I92: 465417
A93: 80 | B93: 24 | C93: 2003 | D93: 住宅 | E93: 109.82 | F93: 83.6 | G93: 26.22 | H93: 4238 | I93: 465417
A94: 81 | B94: 24 | C94: 2004 | D94: 住宅 | E94: 123.88 | F94: 94.3 | G94: 29.58 | H94: 4300 | I94: 532684
A95: 82 | B95: 24 | C95: 2101 | D95: 住宅 | E95: 123.88 | F95: 94.3 | G95: 29.58 | H95: 4310 | I95: =E95*H95 -> 533923
A96: 83 | B96: 24 | C96: 2102 | D96: 住宅 | E96: 109.82 | F96: 83.6 | G96: 26.22 | H96: 4248 | I96: 466515
A97: 84 | B97: 24 | C97: 2103 | D97: 住宅 | E97: 109.82 | F97: 83.6 | G97: 26.22 | H97: 4248 | I97: 466515
A98: 85 | B98: 24 | C98: 2104 | D98: 住宅 | E98: 123.88 | F98: 94.3 | G98: 29.58 | H98: 4310 | I98: 533923
A99: 86 | B99: 24 | C99: 2201 | D99: 住宅 | E99: 123.88 | F99: 94.3 | G99: 29.58 | H99: 4320 | I99: 535162
A100: 87 | B100: 24 | C100: 2202 | D100: 住宅 | E100: 109.82 | F100: 83.6 | G100: 26.22 | H100: 4258 | I100: 467614
A101: 88 | B101: 24 | C101: 2203 | D101: 住宅 | E101: 109.82 | F101: 83.6 | G101: 26.22 | H101: 4258 | I101: 467614
A102: 89 | B102: 24 | C102: 2204 | D102: 住宅 | E102: 123.88 | F102: 94.3 | G102: 29.58 | H102: 4320 | I102: 535162
A103: 90 | B103: 24 | C103: 2301 | D103: 住宅 | E103: 123.88 | F103: 94.3 | G103: 29.58 | H103: 4330 | I103: 536400
A104: 91 | B104: 24 | C104: 2302 | D104: 住宅 | E104: 109.82 | F104: 83.6 | G104: 26.22 | H104: 4268 | I104: 468712
A105: 92 | B105: 24 | C105: 2303 | D105: 住宅 | E105: 109.82 | F105: 83.6 | G105: 26.22 | H105: 4268 | I105: 468712
A106: 93 | B106: 24 | C106: 2304 | D106: 住宅 | E106: 123.88 | F106: 94.3 | G106: 29.58 | H106: 4330 | I106: 536400
A107: 94 | B107: 24 | C107: 2401 | D107: 住宅 | E107: 123.88 | F107: 94.3 | G107: 29.58 | H107: 4340 | I107: 537639
A108: 95 | B108: 24 | C108: 2402 | D108: 住宅 | E108: 109.82 | F108: 83.6 | G108: 26.22 | H108: 4278 | I108: 469810
A109: 96 | B109: 24 | C109: 2403 | D109: 住宅 | E109: 109.82 | F109: 83.6 | G109: 26.22 | H109: 4278 | I109: 469810
A110: 97 | B110: 24 | C110: 2404 | D110: 住宅 | E110: 123.88 | F110: 94.3 | G110: 29.58 | H110: 4340 | I110: 537639
A111: 98 | B111: 24 | C111: 2501 | D111: 住宅 | E111: 123.88 | F111: 94.3 | G111: 29.58 | H111: 4350 | I111: 538878
A112: 99 | B112: 24 | C112: 2502 | D112: 住宅 | E112: 109.82 | F112: 83.6 | G112: 26.22 | H112: 4288 | I112: 470908
A113: 100 | B113: 24 | C113: 2503 | D113: 住宅 | E113: 109.82 | F113: 83.6 | G113: 26.22 | H113: 4288 | I113: 470908
A114: 101 | B114: 24 | C114: 2504 | D114: 住宅 | E114: 123.88 | F114: 94.3 | G114: 29.58 | H114: 4350 | I114: 538878
A115: 102 | B115: 24 | C115: 2601 | D115: 住宅 | E115: 106.53 | F115: 81.09 | G115: 25.44 | H115: 4360 | I115: 464471
A116: 103 | B116: 24 | C116: 2602 | D116: 住宅 | E116: 105.49 | F116: 80.3 | G116: 25.19 | H116: 4298 | I116: 453396
A117: 104 | B117: 24 | C117: 2603 | D117: 住宅 | E117: 105.49 | F117: 80.3 | G117: 25.19 | H117: 4298 | I117: 453396
A118: 105 | B118: 24 | C118: 2604 | D118: 住宅 | E118: 106.53 | F118: 81.09 | G118: 25.44 | H118: 4360 | I118: 464471
A119: 106 | B119: 25 | C119: 201 | D119: 住宅 | E119: 140.28 | F119: 109.78 | G119: 30.5 | H119: 4134 | I119: =E119*H119 -> 579918
A120: 107 | B120: 25 | C120: 202 | D120: 住宅 | E120: 118.55 | F120: 92.77 | G120: 25.78 | H120: 4039 | I120: 478823
A121: 108 | B121: 25 | C121: 203 | D121: 住宅 | E121: 123.43 | F121: 96.59 | G121: 26.84 | H121: 4098 | I121: 505816
A122: 109 | B122: 25 | C122: 301 | D122: 住宅 | E122: 140.28 | F122: 109.78 | G122: 30.5 | H122: 4144 | I122: 581320
A123: 110 | B123: 25 | C123: 302 | D123: 住宅 | E123: 118.55 | F123: 92.77 | G123: 25.78 | H123: 4049 | I123: 480009
A124: 111 | B124: 25 | C124: 303 | D124: 住宅 | E124: 123.43 | F124: 96.59 | G124: 26.84 | H124: 4108 | I124: 507050
A125: 112 | B125: 25 | C125: 401 | D125: 住宅 | E125: 140.28 | F125: 109.78 | G125: 30.5 | H125: 4154 | I125: 582723
A126: 113 | B126: 25 | C126: 402 | D126: 住宅 | E126: 118.55 | F126: 92.77 | G126: 25.78 | H126: 4059 | I126: 481194
A127: 114 | B127: 25 | C127: 403 | D127: 住宅 | E127: 123.43 | F127: 96.59 | G127: 26.84 | H127: 4118 | I127: 508285
A128: 115 | B128: 25 | C128: 501 | D128: 住宅 | E128: 140.28 | F128: 109.78 | G128: 30.5 | H128: 4164 | I128: 584126
A129: 116 | B129: 25 | C129: 502 | D129: 住宅 | E129: 118.55 | F129: 92.77 | G129: 25.78 | H129: 4069 | I129: 482380
A130: 117 | B130: 25 | C130: 503 | D130: 住宅 | E130: 123.43 | F130: 96.59 | G130: 26.84 | H130: 4128 | I130: 509519
A131: 118 | B131: 25 | C131: 601 | D131: 住宅 | E131: 140.28 | F131: 109.78 | G131: 30.5 | H131: 4174 | I131: 585529
A132: 119 | B132: 25 | C132: 602 | D132: 住宅 | E132: 118.55 | F132: 92.77 | G132: 25.78 | H132: 4079 | I132: 483565
A133: 120 | B133: 25 | C133: 603 | D133: 住宅 | E133: 123.43 | F133: 96.59 | G133: 26.84 | H133: 4138 | I133: 510753
A134: 121 | B134: 25 | C134: 701 | D134: 住宅 | E134: 140.28 | F134: 109.78 | G134: 30.5 | H134: 4184 | I134: 586932
A135: 122 | B135: 25 | C135: 702 | D135: 住宅 | E135: 118.55 | F135: 92.77 | G135: 25.78 | H135: 4089 | I135: 484751
A136: 123 | B136: 25 | C136: 703 | D136: 住宅 | E136: 123.43 | F136: 96.59 | G136: 26.84 | H136: 4148 | I136: 511988
A137: 124 | B137: 25 | C137: 801 | D137: 住宅 | E137: 140.28 | F137: 109.78 | G137: 30.5 | H137: 4194 | I137: 588334
A138: 125 | B138: 25 | C138: 802 | D138: 住宅 | E138: 118.55 | F138: 92.77 | G138: 25.78 | H138: 4099 | I138: 485936
A139: 126 | B139: 25 | C139: 803 | D139: 住宅 | E139: 123.43 | F139: 96.59 | G139: 26.84 | H139: 4158 | I139: 513222
A140: 127 | B140: 25 | C140: 901 | D140: 住宅 | E140: 140.28 | F140: 109.78 | G140: 30.5 | H140: 4204 | I140: 589737
A141: 128 | B141: 25 | C141: 902 | D141: 住宅 | E141: 118.55 | F141: 92.77 | G141: 25.78 | H141: 4109 | I141: 487122
A142: 129 | B142: 25 | C142: 903 | D142: 住宅 | E142: 123.43 | F142: 96.59 | G142: 26.84 | H142: 4168 | I142: 514456
A143: 130 | B143: 25 | C143: 1001 | D143: 住宅 | E143: 140.28 | F143: 109.78 | G143: 30.5 | H143: 4214 | I143: 591140
A144: 131 | B144: 25 | C144: 1002 | D144: 住宅 | E144: 118.55 | F144: 92.77 | G144: 25.78 | H144: 4119 | I144: 488307
A145: 132 | B145: 25 | C145: 1003 | D145: 住宅 | E145: 123.43 | F145: 96.59 | G145: 26.84 | H145: 4178 | I145: 515691
A146: 133 | B146: 25 | C146: 1101 | D146: 住宅 | E146: 140.28 | F146: 109.78 | G146: 30.5 | H146: 4224 | I146: =E146*H146 -> 592543
A147: 134 | B147: 25 | C147: 1102 | D147: 住宅 | E147: 118.55 | F147: 92.77 | G147: 25.78 | H147: 4129 | I147: 489493
A148: 135 | B148: 25 | C148: 1103 | D148: 住宅 | E148: 123.43 | F148: 96.59 | G148: 26.84 | H148: 4188 | I148: 516925
A149: 136 | B149: 25 | C149: 1201 | D149: 住宅 | E149: 140.28 | F149: 109.78 | G149: 30.5 | H149: 4234 | I149: 593946
A150: 137 | B150: 25 | C150: 1202 | D150: 住宅 | E150: 118.55 | F150: 92.77 | G150: 25.78 | H150: 4139 | I150: 490678
A151: 138 | B151: 25 | C151: 1203 | D151: 住宅 | E151: 123.43 | F151: 96.59 | G151: 26.84 | H151: 4198 | I151: 518159
A152: 139 | B152: 25 | C152: 1301 | D152: 住宅 | E152: 140.28 | F152: 109.78 | G152: 30.5 | H152: 4244 | I152: 595348
A153: 140 | B153: 25 | C153: 1302 | D153: 住宅 | E153: 118.55 | F153: 92.77 | G153: 25.78 | H153: 4149 | I153: 491864
A154: 141 | B154: 25 | C154: 1303 | D154: 住宅 | E154: 123.43 | F154: 96.59 | G154: 26.84 | H154: 4208 | I154: 519393
A155: 142 | B155: 25 | C155: 1401 | D155: 住宅 | E155: 140.28 | F155: 109.78 | G155: 30.5 | H155: 4254 | I155: 596751
A156: 143 | B156: 25 | C156: 1402 | D156: 住宅 | E156: 118.55 | F156: 92.77 | G156: 25.78 | H156: 4159 | I156: 493049
A157: 144 | B157: 25 | C157: 1403 | D157: 住宅 | E157: 123.43 | F157: 96.59 | G157: 26.84 | H157: 4218 | I157: =E157*H157 -> 520628
A158: 145 | B158: 25 | C158: 1501 | D158: 住宅 | E158: 140.28 | F158: 109.78 | G158: 30.5 | H158: 4264 | I158: 598154
A159: 146 | B159: 25 | C159: 1502 | D159: 住宅 | E159: 118.55 | F159: 92.77 | G159: 25.78 | H159: 4169 | I159: 494235
A160: 147 | B160: 25 | C160: 1503 | D160: 住宅 | E160: 123.43 | F160: 96.59 | G160: 26.84 | H160: 4228 | I160: 521862
A161: 148 | B161: 25 | C161: 1601 | D161: 住宅 | E161: 140.28 | F161: 109.78 | G161: 30.5 | H161: 4274 | I161: 599557
A162: 149 | B162: 25 | C162: 1602 | D162: 住宅 | E162: 118.55 | F162: 92.77 | G162: 25.78 | H162: 4179 | I162: 495420
A163: 150 | B163: 25 | C163: 1603 | D163: 住宅 | E163: 123.43 | F163: 96.59 | G163: 26.84 | H163: 4238 | I163: 523096
A164: 151 | B164: 25 | C164: 1701 | D164: 住宅 | E164: 140.28 | F164: 109.78 | G164: 30.5 | H164: 4284 | I164: 600960
A165: 152 | B165: 25 | C165: 1702 | D165: 住宅 | E165: 118.55 | F165: 92.77 | G165: 25.78 | H165: 4189 | I165: 496606
A166: 153 | B166: 25 | C166: 1703 | D166: 住宅 | E166: 123.43 | F166: 96.59 | G166: 26.84 | H166: 4248 | I166: 524331
A167: 154 | B167: 25 | C167: 1801 | D167: 住宅 | E167: 140.28 | F167: 109.78 | G167: 30.5 | H167: 4294 | I167: 602362
A168: 155 | B168: 25 | C168: 1802 | D168: 住宅 | E168: 118.55 | F168: 92.77 | G168: 25.78 | H168: 4199 | I168: 497791
A169: 156 | B169: 25 | C169: 1803 | D169: 住宅 | E169: 123.43 | F169: 96.59 | G169: 26.84 | H169: 4258 | I169: 525565
A170: 157 | B170: 25 | C170: 1901 | D170: 住宅 | E170: 140.28 | F170: 109.78 | G170: 30.5 | H170: 4304 | I170: 603765
A171: 158 | B171: 25 | C171: 1902 | D171: 住宅 | E171: 118.55 | F171: 92.77 | G171: 25.78 | H171: 4209 | I171: 498977
A172: 159 | B172: 25 | C172: 1903 | D172: 住宅 | E172: 123.43 | F172: 96.59 | G172: 26.84 | H172: 4268 | I172: 526799
A173: 160 | B173: 25 | C173: 2001 | D173: 住宅 | E173: 140.28 | F173: 109.78 | G173: 30.5 | H173: 4314 | I173: 605168
A174: 161 | B174: 25 | C174: 2002 | D174: 住宅 | E174: 118.55 | F174: 92.77 | G174: 25.78 | H174: 4219 | I174: 500162
A175: 162 | B175: 25 | C175: 2003 | D175: 住宅 | E175: 123.43 | F175: 96.59 | G175: 26.84 | H175: 4278 | I175: 528034
A176: 163 | B176: 25 | C176: 2101 | D176: 住宅 | E176: 140.28 | F176: 109.78 | G176: 30.5 | H176: 4324 | I176: 606571
A177: 164 | B177: 25 | C177: 2102 | D177: 住宅 | E177: 118.55 | F177: 92.77 | G177: 25.78 | H177: 4229 | I177: 501348
A178: 165 | B178: 25 | C178: 2103 | D178: 住宅 | E178: 123.43 | F178: 96.59 | G178: 26.84 | H178: 4288 | I178: 529268
A179: 166 | B179: 25 | C179: 2201 | D179: 住宅 | E179: 140.28 | F179: 109.78 | G179: 30.5 | H179: 4334 | I179: 607974
A180: 167 | B180: 25 | C180: 2202 | D180: 住宅 | E180: 118.55 | F180: 92.77 | G180: 25.78 | H180: 4239 | I180: 502533
A181: 168 | B181: 25 | C181: 2203 | D181: 住宅 | E181: 123.43 | F181: 96.59 | G181: 26.84 | H181: 4298 | I181: 530502
A182: 169 | B182: 25 | C182: 2301 | D182: 住宅 | E182: 140.28 | F182: 109.78 | G182: 30.5 | H182: 4344 | I182: 609376
A183: 170 | B183: 25 | C183: 2302 | D183: 住宅 | E183: 118.55 | F183: 92.77 | G183: 25.78 | H183: 4249 | I183: 503719
A184: 171 | B184: 25 | C184: 2303 | D184: 住宅 | E184: 123.43 | F184: 96.59 | G184: 26.84 | H184: 4308 | I184: 531736
A185: 172 | B185: 25 | C185: 2401 | D185: 住宅 | E185: 140.28 | F185: 109.78 | G185: 30.5 | H185: 4354 | I185: 610779
A186: 173 | B186: 25 | C186: 2402 | D186: 住宅 | E186: 118.55 | F186: 92.77 | G186: 25.78 | H186: 4259 | I186: 504904
A187: 174 | B187: 25 | C187: 2403 | D187: 住宅 | E187: 123.43 | F187: 96.59 | G187: 26.84 | H187: 4318 | I187: 532971
A188: 175 | B188: 25 | C188: 2501 | D188: 住宅 | E188: 140.28 | F188: 109.78 | G188: 30.5 | H188: 4364 | I188: =E188*H188 -> 612182
A189: 176 | B189: 25 | C189: 2502 | D189: 住宅 | E189: 118.55 | F189: 92.77 | G189: 25.78 | H189: 4269 | I189: 506090
A190: 177 | B190: 25 | C190: 2503 | D190: 住宅 | E190: 123.43 | F190: 96.59 | G190: 26.84 | H190: 4328 | I190: 534205
A191: 178 | B191: 25 | C191: 2601 | D191: 住宅 | E191: 121.98 | F191: 95.46 | G191: 26.52 | H191: 4246 | I191: 517927
A192: 179 | B192: 25 | C192: 2602 | D192: 住宅 | E192: 104.94 | F192: 82.12 | G192: 22.82 | H192: 4157 | I192: 436236
A193: 180 | B193: 25 | C193: 2603 | D193: 住宅 | E193: 107.32 | F193: 83.98 | G193: 23.34 | H193: 4240 | I193: 455037
A194: 181 | B194: 26 | C194: 201 | D194: 住宅 | E194: 139.42 | F194: 109.78 | G194: 29.64 | H194: 4134 | I194: =E194*H194 -> 576362
A195: 182 | B195: 26 | C195: 202 | D195: 住宅 | E195: 117.81 | F195: 92.77 | G195: 25.04 | H195: 4039 | I195: 475835
A196: 183 | B196: 26 | C196: 203 | D196: 住宅 | E196: 125.48 | F196: 98.81 | G196: 26.67 | H196: 4098 | I196: 514217
A197: 184 | B197: 26 | C197: 301 | D197: 住宅 | E197: 139.42 | F197: 109.78 | G197: 29.64 | H197: 4144 | I197: 577756
A198: 185 | B198: 26 | C198: 302 | D198: 住宅 | E198: 117.81 | F198: 92.77 | G198: 25.04 | H198: 4049 | I198: 477013
A199: 186 | B199: 26 | C199: 303 | D199: 住宅 | E199: 125.48 | F199: 98.81 | G199: 26.67 | H199: 4108 | I199: 515472
A200: 187 | B200: 26 | C200: 401 | D200: 住宅 | E200: 139.42 | F200: 109.78 | G200: 29.64 | H200: 4154 | I200: 579151
A201: 188 | B201: 26 | C201: 402 | D201: 住宅 | E201: 117.81 | F201: 92.77 | G201: 25.04 | H201: 4059 | I201: 478191
A202: 189 | B202: 26 | C202: 403 | D202: 住宅 | E202: 125.48 | F202: 98.81 | G202: 26.67 | H202: 4118 | I202: 516727
A203: 190 | B203: 26 | C203: 501 | D203: 住宅 | E203: 139.42 | F203: 109.78 | G203: 29.64 | H203: 4164 | I203: 580545
A204: 191 | B204: 26 | C204: 502 | D204: 住宅 | E204: 117.81 | F204: 92.77 | G204: 25.04 | H204: 4069 | I204: =E204*H204 -> 479369
A205: 192 | B205: 26 | C205: 503 | D205: 住宅 | E205: 125.48 | F205: 98.81 | G205: 26.67 | H205: 4128 | I205: 517981
A206: 193 | B206: 26 | C206: 601 | D206: 住宅 | E206: 139.42 | F206: 109.78 | G206: 29.64 | H206: 4174 | I206: 581939
... 103 more rows

Sheet Sheet2

Sheet Sheet3
